bitfinex-derivatives/quotes_ETHF0:USTF0_20250624
["timestamp","ask_amount","ask_price","bid_price","bid_amount"]
[1750793664242,1.74579402,2438.2,2438.1,3.77]
[1750793664437,3.12199402,2438.2,2438.1,3.77]
[1750793666642,2.46612402,2438.2,2438.1,3.77]
[1750793667035,3.12199402,2438.2,2438.1,3.77]
[1750793668842,0.65592,2438.0,2437.9,3.2078]
[1750793669040,26.02292,2438.0,2437.9,4.6078]
[1750793669246,27.11284402,2438.0,2437.9,4.6078]
[1750793669448,28.44564402,2438.0,2437.9,4.6078]
[1750793670149,26.45692402,2438.0,2437.9,4.6078]
[1750793670847,27.11284402,2438.0,2437.9,4.6078]
[1750793671252,28.53224402,2438.0,2437.9,4.6078]
[1750793671551,27.87632402,2438.0,2437.9,4.6078]
[1750793672152,28.53224402,2438.0,2437.9,4.6078]
[1750793672349,26.45692402,2438.0,2437.9,5.26375]
[1750793673343,26.45692402,2438.0,2437.9,4.6078]
[1750793673543,27.11284402,2438.0,2437.9,4.6078]
[1750793673754,26.45692402,2438.0,2437.9,5.26375]
[1750793674052,1.08992402,2438.0,2437.9,4.6078]
[1750793674253,1.74584402,2438.0,2437.9,4.6078]
[1750793675252,1.74584402,2438.0,2437.9,1.4]
[1750793675750,3.08844402,2438.0,2437.9,1.4]
[1750793676545,1.74584402,2438.0,2437.9,1.4]
[1750793676748,1.08992402,2438.0,2437.9,1.4]
[1750793676944,27.15484402,2438.0,2437.9,1.4]
[1750793677145,26.49892402,2438.0,2437.9,2.0598]
[1750793678352,27.15484402,2438.0,2437.9,2.0598]
[1750793678551,1.08992402,2438.0,2437.9,2.0598]
[1750793678750,5.6503979,2438.4,2437.9,2.71574]
[1750793678751,25.413,2438.2,2437.9,2.71574]
[1750793678946,0.65586,2438.3,2438.1,3.2078]
[1750793679152,26.4934154,2438.2,2438.1,4.9378]
[1750793679841,27.1492854,2438.2,2438.1,4.9378]
[1750793680045,1.7462854,2438.2,2438.1,4.9378]
[1750793680243,26.4884154,2438.2,2438.1,6.3662]
[1750793680849,26.4874154,2438.2,2438.1,6.3662]
[1750793681050,1.0904154,2438.2,2438.1,6.3662]
[1750793681555,1.7462854,2438.2,2438.1,4.9378]
[1750793681754,33.8152854,2438.2,2438.1,1.73]
[1750793682054,34.4709854,2438.2,2438.1,1.73]
[1750793682255,38.83435416,2438.2,2438.1,1.73]
[1750793683259,27.1321154,2438.2,2438.1,1.73]
[1750793684255,27.7879854,2438.2,2438.1,1.73]
[1750793684958,27.1321154,2438.2,2438.1,1.73]
[1750793685861,26.4704154,2438.2,2438.1,1.73]
[1750793686160,27.1262854,2438.2,2438.1,1.73]
[1750793687358,26.4644154,2438.2,2438.1,1.73]
[1750793688760,27.1162854,2438.2,2438.1,1.73]
[1750793689460,26.4604154,2438.2,2438.1,1.73]
[1750793689853,26.4604154,2438.2,2438.1,3.1303]
[1750793690656,27.1162854,2438.2,2438.1,1.73]
[1750793691361,26.4604154,2438.2,2438.1,1.73]
[1750793691662,27.1162854,2438.2,2438.1,1.73]
[1750793692165,26.4604154,2438.2,2438.1,1.73]
[1750793692763,27.1162854,2438.2,2438.1,1.73]
[1750793693262,26.4604154,2438.2,2438.1,1.73]
[1750793693658,27.1162854,2438.2,2438.1,1.73]
[1750793694953,1.0904154,2438.2,2438.1,1.73]
[1750793695159,26.4594154,2438.2,2438.1,1.73]
[1750793695764,1.0904154,2438.2,2438.1,1.73]
[1750793697764,1.0904154,2438.2,2438.1,2.3859]
[1750793698866,1.0904154,2438.2,2438.1,1.73]
[1750793699866,1.7462854,2438.2,2438.1,1.73]
[1750793700065,1.0904154,2438.2,2438.1,1.73]
[1750793700562,1.7462854,2438.2,2438.1,1.73]
[1750793700961,1.0904154,2438.2,2438.1,1.73]
[1750793701163,1.7462854,2438.2,2438.1,1.73]
[1750793701565,1.0904154,2438.2,2438.1,1.73]
[1750793702266,26.68791,2438.5,2438.1,1.73]
[1750793702458,1.08833602,2438.4,2438.2,0.6508]
[1750793702659,26.68791,2438.5,2438.3,3.2078]
[1750793702867,1.08828293,2438.4,2438.3,4.5978]
[1750793703367,1.08828293,2438.4,2438.3,5.25364]
[1750793703567,0.7186,2438.8,2438.5,0.65579]
[1750793703868,2.4425979,2439.2,2438.7,8.97927219]
[1750793704064,0.7186,2439.6,2439.1,3.2078]
[1750793704262,1.37411,2439.6,2439.5,3.2078]
[1750793704568,1.37411,2439.6,2439.5,8.4778]
[1750793704865,1.37411,2439.6,2439.5,3.2078]
[1750793705468,0.65556,2439.4,2439.2,3.2078]
[1750793705664,0.65556,2439.4,2439.2,4.4378]
[1750793706165,0.65554,2439.5,2439.2,4.4378]
[1750793706364,2.04094,2439.5,2439.2,4.4378]
[1750793706565,1.3854,2439.5,2439.2,4.4378]
[1750793706974,2.04093,2439.5,2439.2,4.4378]
[1750793707481,0.65557,2439.3,2439.2,4.4378]
[1750793707666,1.3854,2439.5,2439.2,4.4378]
[1750793707966,0.65557,2439.3,2439.2,4.4378]
[1750793708975,0.65556,2439.4,2439.2,4.4378]
[1750793709172,1.4285,2439.3,2439.2,4.4378]
[1750793710473,2.08407,2439.3,2439.2,4.4378]
[1750793715879,0.65557,2439.3,2439.2,4.4378]
[1750793716880,0.65556,2439.4,2439.2,4.4378]
[1750793717076,26.01254,2439.5,2439.2,4.4378]
[1750793718370,25.357,2439.5,2439.2,4.4378]
[1750793718574,26.01253,2439.5,2439.2,4.4378]
[1750793718871,26.01151,2439.6,2439.3,0.6814]
[1750793719072,26.01151,2439.6,2439.5,3.2078]
[1750793719273,26.01151,2439.6,2439.5,4.7878]
[1750793719673,1.3669,2440.0,2439.5,4.7878]
[1750793719875,0.65548,2439.7,2439.5,4.7878]
[1750793720076,25.354,2439.8,2439.5,4.7878]
[1750793720282,3.04841334,2439.7,2439.5,4.7878]
[1750793720491,0.65549,2439.6,2439.5,4.7878]
[1750793721581,3.70389334,2439.7,2439.5,4.7878]
[1750793721881,0.65549,2439.6,2439.5,4.7878]
[1750793722876,1.97529,2439.6,2439.5,4.7878]
[1750793723078,0.65558,2439.3,2439.2,3.2078]
[1750793723380,0.65558,2439.3,2439.2,4.4278]
[1750793723979,28.40041334,2439.4,2439.2,4.4278]
[1750793724178,0.65558,2439.3,2439.2,4.4278]
[1750793724377,30.45018334,2439.4,2439.2,4.4278]
[1750793724578,0.65558,2439.3,2439.2,4.4278]
[1750793724784,30.45018334,2439.4,2439.2,4.4278]
[1750793724974,26.7462,2439.4,2439.2,4.4278]
[1750793725881,2.04975,2439.4,2439.2,4.4278]
[1750793726083,27.40075,2439.4,2439.2,4.4278]
[1750793728178,0.65558,2439.3,2439.2,4.4278]
[1750793728779,26.7452,2439.4,2439.2,4.4278]
[1750793728978,0.65558,2439.3,2439.2,4.4278]
[1750793731177,27.40077,2439.4,2439.2,4.4278]
[1750793731482,1.08315676,2439.3,2439.2,5.08339]
[1750793732079,1.08315676,2439.3,2439.2,5.0834]
[1750793732383,1.08400788,2439.3,2439.2,5.08338]
[1750793732579,1.08400788,2439.3,2439.2,6.52028]
[1750793732783,1.08400788,2439.3,2439.2,5.08338]
[1750793732985,1.08403836,2439.3,2439.2,5.08338]
[1750793733182,25.348,2439.4,2439.3,0.65558]
[1750793733387,26.43203739,2439.4,2439.3,6.7967]
[1750793733589,1.08403739,2439.4,2439.3,11.82059334]
[1750793734289,0.65548,2439.7,2439.4,0.65553]
[1750793734290,0.65549,2439.6,2439.4,0.65553]
[1750793734589,0.65549,2439.6,2439.5,4.5277]
[1750793734786,0.65549,2439.6,2439.5,11.10712]
[1750793734787,1.08520296,2439.6,2439.5,11.10712]
[1750793735185,1.63827,2440.3,2439.6,0.65547]
[1750793735391,0.65533,2440.2,2440.1,3.2078]
[1750793735588,0.65533,2440.2,2440.1,5.7678]
[1750793736592,0.65533,2440.2,2440.1,2.56]
[1750793736788,2.01253,2440.2,2440.1,2.56]
[1750793740388,27.35553,2440.2,2440.1,2.56]
[1750793744999,0.65542,2439.9,2439.8,3.2078]
[1750793745197,3.70383334,2439.9,2439.8,5.5978]
[1750793747202,4.78148692,2439.9,2439.8,5.5978]
[1750793747906,6.12528692,2439.9,2439.8,5.5978]
[1750793749503,17.77728692,2439.9,2439.8,0.21651413]
[1750793749697,0.6555,2439.6,2439.5,3.2078]
[1750793749897,30.11856692,2439.6,2439.5,5.1778]
[1750793752296,30.83336692,2439.6,2439.5,5.1778]
[1750793753304,27.78495358,2439.6,2439.5,5.1778]
[1750793756806,2.44795358,2439.6,2439.5,5.1778]
[1750793757011,27.78395358,2439.6,2439.5,5.1778]
[1750793762113,33.61195358,2439.6,2439.5,5.1778]
[1750793763414,6.90565358,2439.6,2439.5,5.1778]
[1750793763618,32.89415358,2439.6,2439.5,5.8616]
[1750793764412,32.23865358,2439.6,2439.5,5.8616]
[1750793764814,1.07765358,2439.6,2439.5,5.8616]
[1750793765019,0.65535,2440.2,2439.8,0.65544]
[1750793765210,0.65533,2440.3,2440.1,3.2078]
[1750793765408,25.332,2440.2,2440.1,5.9578]
[1750793765911,0.47327159,2440.4,2440.1,6.61317]
[1750793765912,0.07134722,2440.4,2440.1,6.61317]
[1750793766134,25.332,2440.3,2440.2,2.03733]
[1750793766411,25.332,2440.3,2440.2,5.98533]
[1750793767311,25.332,2440.3,2440.2,5.33]
[1750793767814,25.329,2440.3,2440.2,5.33]
[1750793768013,25.329,2440.3,2440.2,5.98534]
[1750793768515,0.6552,2440.8,2440.2,10.33]
[1750793768717,25.9842,2440.8,2440.7,3.2078]
[1750793768912,3.04841334,2441.0,2440.7,3.2078]
[1750793769113,6.97797997,2441.1,2440.8,0.6809]
[1750793769114,25.98415,2440.9,2440.8,0.6809]
[1750793769314,25.98415,2440.9,2440.8,1.401]
[1750793772711,25.98415,2440.9,2440.8,1.731]
[1750793775210,25.98415,2440.9,2440.8,0.33]
[1750793775418,0.65527,2440.5,2440.3,3.2078]
[1750793775619,25.97829,2440.4,2440.3,5.0678]
[1750793778508,26.68009,2440.4,2440.3,1.86]
[1750793778715,0.65537,2440.1,2440.0,3.2078]
[1750793778912,25.97737,2440.1,2440.0,4.9478]
[1750793779312,25.97737,2440.1,2440.0,1.74]
[1750793779313,29.02578334,2440.1,2440.0,1.74]
[1750793779912,30.09196153,2440.1,2440.0,1.74]
[1750793780619,31.42696153,2440.1,2440.0,1.74]
[1750793780825,36.42696153,2440.1,2440.0,1.74]
[1750793781131,0.65545,2439.8,2439.7,3.2078]
[1750793781322,29.02586334,2439.8,2439.7,3.6678]
[1750793781723,31.02746334,2439.8,2439.7,3.6678]
[1750793782426,31.02746334,2439.8,2439.7,0.46]
[1750793782427,32.0947317,2439.8,2439.7,0.46]
[1750793782818,32.4165903,2439.8,2439.7,0.46]
[1750793784726,1.73386836,2439.8,2439.7,3.6678]
[1750793784923,25.323,2439.9,2439.7,3.6678]
[1750793785128,0.6554,2440.0,2439.7,4.32327]
[1750793785319,25.327,2439.9,2439.8,1.37085]
[1750793785627,48.51782,2440.3,2439.9,0.65541]
[1750793785822,26.39337118,2440.2,2440.0,5.1969]
[1750793786022,25.325,2440.2,2440.0,7.3769]
[1750793786222,25.98034,2440.2,2440.0,7.3769]
[1750793786526,1.30683,2440.3,2440.0,7.3769]
[1750793786723,25.325,2440.2,2440.0,7.3769]
[1750793786920,25.325,2440.2,2440.0,8.03229]
[1750793787125,6.644,2440.4,2440.1,0.65537]
[1750793787429,25.325,2440.3,2440.2,1.3165]
[1750793787629,25.98031,2440.3,2440.2,3.7978]
[1750793788128,27.04901449,2440.3,2440.2,3.7978]
[1750793788729,30.09742783,2440.3,2440.2,0.59]
[1750793789430,29.44211783,2440.3,2440.2,0.59]
[1750793790234,30.09742783,2440.3,2440.2,0.59]
[1750793790427,29.44211783,2440.3,2440.2,0.59]
[1750793790734,29.44211783,2440.3,2440.2,3.7978]
[1750793794536,30.09742783,2440.3,2440.2,3.7978]
[1750793795936,30.09835416,2440.3,2440.2,3.7978]
[1750793797637,27.04994082,2440.3,2440.2,3.7978]
[1750793797838,30.09835416,2440.3,2440.2,3.7978]
[1750793798733,30.09835416,2440.3,2440.2,0.59]
[1750793799033,31.53905416,2440.3,2440.2,0.59]
[1750793799431,31.53905416,2440.3,2440.2,1e-08]
[1750793799642,1.63837,2440.2,2439.6,0.6838]
[1750793799838,3.70387334,2439.8,2439.6,0.6838]
[1750793800033,25.321,2439.7,2439.6,3.7938]
[1750793800232,25.97647,2439.7,2439.6,3.7938]
[1750793802442,25.321,2439.7,2439.6,3.7938]
[1750793802751,25.97647,2439.7,2439.6,3.7938]
[1750793803240,27.04672896,2439.7,2439.6,3.7938]
[1750793803834,27.04672896,2439.7,2439.6,3.11]
[1750793804039,28.42062896,2439.7,2439.6,3.11]
[1750793806440,0.65558,2439.3,2439.2,4.5506]
[1750793806745,25.97758,2439.3,2439.2,7.4006]
[1750793806948,25.322,2439.3,2439.2,7.4006]
[1750793807645,25.97758,2439.3,2439.2,7.4006]
[1750793809050,25.322,2439.3,2439.2,7.4006]
[1750793809644,25.97758,2439.3,2439.2,7.4006]
[1750793810750,25.322,2439.3,2439.2,7.4006]
[1750793810944,25.322,2439.3,2439.2,8.05621]
[1750793811448,25.97758,2439.3,2439.2,7.4006]
[1750793812039,25.322,2439.3,2439.2,7.4006]
[1750793812547,25.97758,2439.3,2439.2,7.4006]
[1750793813650,25.322,2439.3,2439.2,8.05621]
[1750793813850,25.97758,2439.3,2439.2,7.4006]
[1750793814446,25.322,2439.3,2439.2,7.4006]
[1750793815046,25.97758,2439.3,2439.2,6.0578]
[1750793815251,28.44501487,2439.3,2439.2,5.5701464]
[1750793815750,28.44501487,2439.3,2439.2,2.85]
[1750793816649,37.48081487,2439.3,2439.2,2.85]
[1750793817349,38.19821487,2439.3,2439.2,2.85]
[1750793818251,43.19821487,2439.3,2439.2,2.85]
[1750793819447,17.87621487,2439.3,2439.2,2.85]
[1750793819652,13.53783487,2439.3,2439.2,2.85]
[1750793819951,32.21783487,2439.3,2439.2,2.85]
[1750793820351,32.21783487,2439.3,2439.2,4.169]
[1750793820856,32.87341487,2439.3,2439.2,4.169]
[1750793821253,27.04541487,2439.3,2439.2,4.169]
[1750793822354,26.38983487,2439.3,2439.2,4.169]
[1750793822656,27.04541487,2439.3,2439.2,4.169]
[1750793825452,27.04541487,2439.3,2439.2,2.85]
[1750793829160,0.65566,2439.0,2438.9,3.2078]
[1750793829461,29.02507334,2439.0,2438.9,4.5478]
[1750793829761,30.09190821,2439.0,2438.9,4.5478]
[1750793830261,33.29970821,2439.0,2438.9,0.3542]
[1750793830456,42.17420611,2439.0,2438.9,1e-05]
[1750793830661,0.65585,2438.3,2438.2,3.8713]
[1750793830963,30.09209821,2438.3,2438.2,9.5013]
[1750793831762,30.09209821,2438.3,2438.2,8.8378]
[1750793832155,29.02526334,2438.3,2438.2,8.8378]
[1750793832760,30.09174942,2438.3,2438.2,8.8378]
[1750793833360,29.02526334,2438.3,2438.2,8.8378]
[1750793834864,25.97685,2438.3,2438.2,8.8378]
[1750793838259,29.02526334,2438.3,2438.2,5.63]
[1750793838657,25.97685,2438.3,2438.2,5.63]
[1750793839471,27.39295,2438.3,2438.2,5.63]
[1750793841173,28.45678916,2438.3,2438.2,5.63]
[1750793842679,36.66458916,2438.3,2438.2,4.6823]
[1750793842877,39.77639665,2438.3,2438.2,2.39576]
[1750793843175,0.65607,2437.5,2437.4,0.7114]
[1750793843380,25.98207,2437.5,2437.4,4.54100961]
[1750793844465,25.326,2437.5,2437.4,5.22430961]
[1750793844877,25.98207,2437.5,2437.4,5.22430961]
[1750793847574,25.98207,2437.5,2437.4,4.54100961]
[1750793850871,27.31547,2437.5,2437.4,4.54100961]
[1750793852865,31.58469755,2437.5,2437.4,4.54100961]
[1750793853777,30.52327,2437.5,2437.4,4.54100961]
[1750793854680,0.65628,2436.7,2436.6,3.2078]
[1750793854880,1.64087,2436.5,2436.1,8.19]
[1750793855173,1.64087,2436.5,2436.1,0.28903916]
[1750793855174,3.70483334,2436.2,2436.1,0.28903916]
[1750793855367,34.44112124,2436.2,2434.8,0.6726]
[1750793855566,0.65677,2434.9,2434.8,6.13]
[1750793855764,0.65677,2434.9,2433.2,3.04841334]
[1750793855765,80.29262918,2434.9,2433.5,3.2078]
[1750793855976,80.29262918,2434.9,2433.8,3.2078]
[1750793855977,0.65691,2434.4,2433.8,3.2078]
[1750793856175,25.428,2434.4,2434.0,3.04841334]
[1750793856379,3.04841334,2434.2,2434.0,5.54]
[1750793856674,6.25621334,2434.2,2434.0,5.54]
[1750793856879,26.09598,2434.1,2434.0,5.54]
[1750793857276,32.084,2434.1,2434.0,5.54]
[1750793858180,3.2078,2434.4,2434.0,5.54]
[1750793858482,25.46,2434.3,2434.1,1.96767]
[1750793858781,28.6728,2434.7,2434.4,0.65689]
[1750793858981,28.6728,2434.7,2434.5,2.0159]
[1750793859182,28.6728,2434.7,2434.5,8.84277]
[1750793859680,25.474,2434.7,2434.6,0.65685]
[1750793859881,25.47,2434.7,2434.6,4.6007]
[1750793861477,25.47,2434.7,2434.6,3.29]
[1750793861880,26.12682,2434.7,2434.6,3.29]
[1750793863278,27.49492,2434.7,2434.6,3.29]
[1750793864178,0.65696,2434.2,2434.0,0.6521]
[1750793864381,28.6708,2434.2,2434.0,6.0821]
[1750793865284,29.32777,2434.2,2434.0,6.0821]
[1750793865483,0.65712,2433.6,2433.5,7.12]
[1750793865686,41.16636402,2433.6,2433.5,1.91]
[1750793865887,3.2078,2433.6,2433.5,1.91]
[1750793866188,3.2078,2433.6,2433.5,7.56715]
[1750793866680,28.7408,2434.0,2433.5,6.91]
[1750793866884,0.65708,2433.8,2433.6,1.3412]
[1750793867188,0.65709,2433.7,2433.6,4.6212]
[1750793867786,3.2078,2433.8,2433.6,3.28]
[1750793868472,3.86487,2433.8,2433.6,4.583]
[1750793868887,0.65709,2433.7,2433.6,4.583]
[1750793869584,26.19509,2433.7,2433.6,3.28]
[1750793874185,3.86488,2433.8,2433.6,3.28]
[1750793874493,3.2078,2433.8,2433.7,0.65709]
[1750793874679,3.2078,2434.0,2433.9,0.65704]
[1750793874983,3.2078,2434.0,2433.9,4.93704]
[1750793875184,3.2078,2434.0,2433.9,9.93704]
[1750793875386,26.19696,2434.2,2433.9,9.93704]
[1750793875586,0.65698,2434.1,2434.0,2.0387]
[1750793875781,0.65698,2434.1,2434.0,3.1462]
[1750793875986,7.37098,2434.1,2434.0,2.47]
[1750793878988,8.77418,2434.1,2434.0,2.47]
[1750793879597,9.8191836,2434.1,2434.0,2.47]
[1750793879994,10.4908836,2434.1,2434.0,2.47]
[1750793880789,10.4908836,2434.1,2434.0,0.64969]
[1750793881390,10.49408379,2434.1,2434.0,0.64969]
[1750793882492,12.91481906,2434.1,2434.0,0.64969]
[1750793883195,10.49408379,2434.1,2434.0,0.64969]
[1750793883689,13.70188379,2434.1,2434.0,0.64969]
[1750793885297,14.85463081,2434.1,2434.0,0.64969]
[1750793885596,11.62698379,2434.1,2434.0,0.64969]
[1750793888601,13.06448379,2434.1,2434.0,0.64969]
[1750793889098,16.29213081,2434.1,2434.0,0.64969]
[1750793889298,1.64261,2433.9,2433.4,0.6904]
[1750793889502,6.28712494,2433.5,2433.4,5.17]
[1750793889803,32.86232873,2433.5,2433.4,5.17]
[1750793890401,30.44015379,2433.5,2433.4,5.17]
[1750793890604,31.74635379,2433.5,2433.4,5.17]
[1750793894501,0.65728,2433.0,2432.9,6.8425]
[1750793894708,0.65742,2432.5,2432.4,11.946]
[1750793894905,0.65742,2432.5,2432.4,12.596]
[1750793895101,1.70562379,2432.5,2432.4,10.87]
[1750793895402,27.20862379,2432.5,2432.4,10.87]
[1750793896000,27.20862379,2432.5,2432.4,5.87]
[1750793896603,29.63330392,2432.5,2432.4,5.87]
[1750793897003,27.20862379,2432.5,2432.4,5.87]
[1750793901410,1.04820379,2432.5,2432.4,5.87]
[1750793901624,25.481,2432.5,2432.4,5.87]
[1750793901922,26.52920379,2432.5,2432.4,6.52744]
[1750793902120,26.52920379,2432.5,2432.4,11.52744]
[1750793902418,26.52920379,2432.5,2432.4,6.52744]
[1750793902616,26.52920379,2432.5,2432.4,11.52744]
[1750793902812,28.6918,2432.7,2432.6,0.65739]
[1750793903017,29.73996228,2432.7,2432.6,6.29739]
[1750793903318,29.73996228,2432.7,2432.6,5.64]
[1750793903719,29.73996228,2432.7,2432.6,6.29739]
[1750793904219,29.73996228,2432.7,2432.6,5.64]
[1750793904423,30.39732228,2432.7,2432.6,5.64]
[1750793905521,30.39732228,2432.7,2432.6,6.9806]
[1750793905817,29.73996228,2432.7,2432.6,6.9806]
[1750793906020,30.39732228,2432.7,2432.6,6.9806]
[1750793906220,29.73996228,2432.7,2432.6,7.63799]
[1750793907016,30.39732228,2432.7,2432.6,7.63799]
[1750793907221,29.73996228,2432.7,2432.6,7.63799]
[1750793907416,5.78956402,2433.1,2432.6,7.63799]
[1750793907417,25.481,2432.8,2432.6,11.9806]
[1750793907623,0.65736,2432.7,2432.6,6.9806]
[1750793908125,0.65736,2432.7,2432.6,11.9806]
[1750793908519,26.13834,2432.8,2432.6,11.9806]
[1750793908822,25.481,2432.8,2432.6,7.63798]
[1750793909021,26.13833,2432.8,2432.6,6.9806]
[1750793909217,25.481,2432.8,2432.6,7.63799]
[1750793909618,3.86516,2432.7,2432.6,6.9806]
[1750793909829,3.86516,2432.7,2432.6,5.64]
[1750793910426,3.2078,2432.7,2432.6,5.64]
[1750793910629,3.86516,2432.7,2432.6,5.64]
[1750793911320,3.2078,2432.7,2432.6,5.64]
[1750793911523,28.6708,2432.7,2432.6,6.29739]
[1750793912318,3.2078,2432.7,2432.6,12.63829]
[1750793912519,3.2078,2433.2,2433.1,0.65725]
[1750793912726,29.72578363,2433.2,2433.1,3.56725]
[1750793912923,28.6758,2433.2,2433.1,3.56725]
[1750793913623,3.2078,2433.2,2433.1,3.56725]
[1750793913822,28.6808,2433.2,2433.1,3.56725]
[1750793914029,28.6778,2433.2,2433.1,3.56725]
[1750793914920,28.6778,2433.2,2433.1,2.91]
[1750793915624,29.33503,2433.2,2433.1,2.91]
[1750793916725,30.38632447,2433.2,2433.1,2.91]
[1750793916922,31.81182447,2433.2,2433.1,2.91]
[1750793917421,31.81182447,2433.2,2433.1,2.01025]
[1750793917625,32.48622447,2433.2,2433.1,2.01025]
[1750793917826,33.20272447,2433.2,2433.1,2.01025]
[1750793919731,0.65736,2432.7,2432.6,4.3]
[1750793920028,0.65736,2432.7,2432.1,11.447]
[1750793920029,0.6575,2432.2,2432.1,11.447]
[1750793920228,0.6575,2432.2,2432.1,14.317]
[1750793920630,0.65749,2432.3,2432.1,14.317]
[1750793920823,0.6575,2432.2,2432.1,7.59]
[1750793921722,26.1085,2432.2,2432.1,6.16]
[1750793922228,33.88886477,2432.2,2432.1,6.16]
[1750793922425,35.22726477,2432.2,2432.1,6.16]
[1750793922933,35.22726477,2432.2,2432.1,4.33208]
[1750793923120,40.22726477,2432.2,2432.1,3.32678]
[1750793923429,35.22726477,2432.2,2432.1,0.22537]
[1750793924124,0.65763,2431.7,2431.6,7.81]
[1750793924333,34.47036402,2431.7,2431.6,2.64]
[1750793924519,35.52249731,2431.7,2431.6,2.64]
[1750793924720,37.8413784,2431.7,2431.6,2.64]
[1750793925926,42.8413784,2431.7,2431.6,1.72263]
[1750793926124,42.8413784,2431.7,2431.6,0.80189]
[1750793926431,0.65777,2431.2,2431.1,4.14]
[1750793926628,28.6888,2431.2,2431.1,5.61]
[1750793926931,29.34657,2431.2,2431.1,5.61]
[1750793927232,30.76687,2431.2,2431.1,5.61]
[1750793927429,29.34657,2431.2,2431.1,5.61]
[1750793927830,30.76687,2431.2,2431.1,5.61]
[1750793928032,3.2078,2431.2,2431.1,5.61]
[1750793928429,3.86557,2431.2,2431.1,5.61]
[1750793931333,5.27327,2431.2,2431.1,5.61]
[1750793932037,3.86557,2431.2,2431.1,5.61]
[1750793932335,29.35657,2431.2,2431.1,5.61]
[1750793933234,3.2078,2431.6,2431.2,0.65775]
[1750793933425,3.86546,2431.6,2431.3,2.0244]
[1750793933630,3.2078,2431.6,2431.3,4.7771]
[1750793934035,6.718,2431.9,2431.4,1.3273]
[1750793934333,25.506,2431.8,2431.5,1.31696]
[1750793934535,25.506,2431.8,2431.6,2.01765]
[1750793934731,25.506,2431.8,2431.6,4.3]
[1750793935132,0.65758,2431.9,2431.6,4.3]
[1750793935333,0.65755,2432.0,2431.6,4.95763]
[1750793935532,0.65759,2431.9,2431.6,4.3]
[1750793935734,0.6576,2431.8,2431.6,4.3]
[1750793936139,0.6576,2431.8,2431.6,9.3]
[1750793936340,0.65759,2431.9,2431.6,9.95765]
[1750793936638,25.527,2432.1,2431.6,4.3]
[1750793936838,0.65762,2431.7,2431.6,2.94]
[1750793937740,26.17561,2431.8,2431.6,2.94]
[1750793937938,0.65758,2431.9,2431.6,4.96425]
[1750793938239,26.17458,2431.9,2431.6,4.96425]
[1750793938439,26.17458,2431.9,2431.7,0.65762]
[1750793938440,25.517,2431.9,2431.7,0.65762]
[1750793938644,25.517,2431.9,2431.8,1.3666]
[1750793938837,26.17457,2431.9,2431.8,7.4825]
[1750793939143,25.517,2431.9,2431.8,7.4825]
[1750793939942,25.517,2431.9,2431.8,8.1401]
[1750793940340,25.517,2431.9,2431.8,7.4825]
[1750793941040,25.517,2431.9,2431.8,8.1401]
[1750793942242,0.65752,2432.1,2431.9,0.65756]
[1750793942442,0.65752,2432.1,2431.9,6.11236]
[1750793942739,25.504,2432.5,2432.1,0.65751]
[1750793943044,25.504,2432.5,2432.2,0.65749]
[1750793943249,26.16143,2432.5,2432.2,5.25229]
[1750793943441,25.504,2432.5,2432.3,0.65746]
[1750793943637,9.9248,2432.8,2432.3,4.6118]
[1750793943835,25.83509232,2432.9,2432.3,7.8196]
[1750793944141,3.2078,2432.8,2432.3,4.6118]
[1750793944333,0.65736,2432.7,2432.4,0.65741]
[1750793944536,0.65736,2432.7,2432.4,6.26161]
[1750793944737,0.65734,2432.8,2432.5,0.65741]
[1750793944936,0.65734,2432.8,2432.5,3.39741]
[1750793945139,0.65733,2432.8,2432.5,4.76159]
[1750793945338,25.517,2432.9,2432.5,2.74]
[1750793945945,0.65734,2432.8,2432.5,2.74]
[1750793946242,26.17431,2432.9,2432.5,4.76159]
[1750793946541,25.517,2432.9,2432.5,4.1042]
[1750793946739,5.78956402,2432.8,2432.5,4.1042]
[1750793946941,0.65737,2432.7,2432.5,2.74]
[1750793947239,0.65738,2432.6,2432.5,2.74]
[1750793948036,0.6575,2432.2,2432.0,3.9266]
[1750793948240,0.65747,2432.3,2432.0,8.2166]
[1750793948447,31.98101402,2432.4,2432.0,8.2166]
[1750793948642,0.65747,2432.3,2432.0,8.2166]
[1750793948946,33.33951402,2432.4,2432.0,8.2166]
[1750793949144,0.65746,2432.3,2432.0,8.2166]
[1750793949339,32.68206402,2432.4,2432.0,8.2166]
[1750793949544,0.6575,2432.2,2432.0,8.2166]
[1750793949746,0.65747,2432.3,2432.0,8.2166]
[1750793949941,32.68206402,2432.4,2432.0,7.4978]
[1750793950148,6.44707402,2432.1,2432.0,4.29]
[1750793950945,7.86387402,2432.1,2432.0,4.29]
[1750793951246,7.20636402,2432.1,2431.6,0.7188]
[1750793951453,5.78956402,2431.7,2431.6,3.5288]
[1750793951649,31.98412402,2432.0,2431.6,3.5288]
[1750793951850,0.65757,2431.9,2431.6,4.9225]
[1750793952058,28.7548,2432.2,2431.6,4.9225]
[1750793952354,0.65755,2432.0,2431.6,4.9225]
[1750793952754,30.8291,2432.2,2431.7,0.65762]
[1750793952949,1.04787163,2432.1,2431.7,6.36762]
[1750793953256,0.65743,2432.4,2431.8,10.58139]
[1750793953448,0.65747,2432.3,2431.9,0.65757]
[1750793953647,0.65747,2432.3,2431.9,7.7691]
[1750793953854,29.41822,2432.5,2432.0,0.7132]